bitfinex-derivatives/quotes_SOLF0:USTF0_20250109
["timestamp","ask_amount","ask_price","bid_price","bid_amount"]
[1736443691564,2.6246,190.53,190.48,2.6252]
[1736443692376,13.25932263,190.56,190.44,4.74]
[1736443692671,13.25932263,190.56,190.5,2.6249]
[1736443692866,3.1934,190.61,190.46,13.25932263]
[1736443692867,13.25932263,190.59,190.46,13.25932263]
[1736443693774,13.25932263,190.59,190.53,2.6246]
[1736443694176,3.1934,190.61,190.49,13.25932263]
[1736443694370,1.6315,190.61,190.49,2.6251]
[1736443694576,1.6315,190.61,190.49,13.25932263]
[1736443694778,2.624,190.58,190.46,13.25932263]
[1736443694979,13.25932263,190.59,190.46,17.97932263]
[1736443695775,2.6243,190.56,190.5,2.625]
[1736443696168,13.25932263,190.59,190.46,17.97932263]
[1736443696369,13.25932263,190.59,190.52,2.6247]
[1736443697381,13.25932263,190.59,190.46,17.97932263]
[1736443697573,13.25932263,190.59,190.5,2.6249]
[1736443698379,13.25932263,190.59,190.51,2.6248]
[1736443698578,13.25932263,190.59,190.46,17.97932263]
[1736443698778,2.6241,190.57,190.46,17.97932263]
[1736443699284,2.6241,190.57,190.49,13.25932263]
[1736443699977,2.6241,190.57,190.51,2.6248]
[1736443700182,2.6241,190.57,190.49,13.25932263]
[1736443701076,2.6241,190.57,190.52,2.6247]
[1736443701477,15.88312263,190.59,190.49,13.25932263]
[1736443701675,15.88312263,190.59,190.54,2.6244]
[1736443703084,13.25932263,190.59,190.54,2.6244]
[1736443703275,2.624,190.58,190.54,2.6244]
[1736443704082,13.25932263,190.59,190.49,13.25932263]
[1736443704279,13.25932263,190.56,190.45,1.5792]
[1736443704483,13.25932263,190.56,190.45,6.2792]
[1736443704982,2.6246,190.53,190.48,2.6252]
[1736443705281,13.25932263,190.56,190.45,1.5792]
[1736443705590,2.6249,190.51,190.47,2.6254]
[1736443706486,1.4865,190.55,190.47,2.6254]
[1736443706685,2.6248,190.52,190.47,2.6254]
[1736443706884,1.4865,190.55,190.47,2.6254]
[1736443707084,2.6249,190.51,190.47,2.6254]
[1736443711587,2.6249,190.51,190.45,1.5792]
[1736443711785,2.6249,190.51,190.45,4.2048]
[1736443711992,2.6249,190.51,190.45,1.5792]
[1736443712690,2.6249,190.51,190.46,2.6256]
[1736443713285,2.625,190.5,190.46,2.6256]
[1736443715895,13.25932263,190.53,190.43,13.25932263]
[1736443716194,13.25932263,190.5,190.4,14.41873331]
[1736443716386,2.6259,190.44,190.4,17.04503331]
[1736443716693,2.6259,190.44,190.4,7.3063]
[1736443716890,2.626,190.43,190.4,2.6263]
[1736443717089,2.626,190.43,190.39,2.6264]
[1736443717393,2.626,190.43,190.38,9.7411452]
[1736443717589,2.626,190.43,190.4,2.6263]
[1736443717796,2.6259,190.44,190.4,2.6263]
[1736443719191,13.25932263,190.5,190.42,2.6261]
[1736443719793,2.6255,190.47,190.4,13.25932263]
[1736443720094,2.625,190.5,190.46,2.6255]
[1736443720292,1.589,190.53,190.43,13.25932263]
[1736443720595,13.25932263,190.52,190.4,13.25932263]
[1736443721097,2.6253,190.48,190.4,13.25932263]
[1736443721394,13.25932263,190.52,190.4,13.25932263]
[1736443721589,2.6251,190.5,190.46,2.6255]
[1736443723491,2.6248,190.52,190.48,2.6252]
[1736443723695,2.6248,190.52,190.43,13.25932263]
[1736443724495,2.6248,190.52,190.48,2.6252]
[1736443725792,2.6248,190.52,190.43,13.25932263]
[1736443725996,2.6248,190.52,190.49,2.6251]
[1736443726894,2.6249,190.51,190.48,2.6253]
[1736443727097,13.25932263,190.53,190.44,4.66]
[1736443727291,2.625,190.5,190.44,4.66]
[1736443727596,2.625,190.5,190.48,2.6253]
[1736443727797,13.25932263,190.53,190.48,2.6253]
[1736443727997,2.6249,190.51,190.48,2.6253]
[1736443728595,2.6251,190.5,190.44,4.66]
[1736443728796,13.25932263,190.53,190.44,4.66]
[1736443729997,2.6249,190.51,190.46,2.6255]
[1736443730191,2.6249,190.51,190.44,4.66]
[1736443730399,13.25932263,190.53,190.44,4.66]
[1736443730600,2.6251,190.5,190.47,2.6254]
[1736443731398,2.6249,190.51,190.47,2.6254]
[1736443732399,2.6249,190.51,190.44,4.66]
[1736443732702,1.4865,190.55,190.44,4.66]
[1736443733000,1.4865,190.55,190.47,2.6253]
[1736443733202,2.625,190.51,190.47,2.6253]
[1736443733893,2.625,190.51,190.48,2.6253]
[1736443736901,2.6246,190.53,190.5,2.625]
[1736443737707,2.6246,190.54,190.51,2.6248]
[1736443737905,13.25932263,190.56,190.44,4.66]
[1736443738403,2.6247,190.53,190.5,2.625]
[1736443739608,2.6247,190.52,190.5,2.625]
[1736443739810,13.25932263,190.56,190.48,2.6252]
[1736443740209,2.625,190.5,190.48,2.6252]
[1736443740709,2.625,190.5,190.47,2.6253]
[1736443740897,2.6249,190.51,190.42,7.7242]
[1736443741102,2.6249,190.51,190.42,20.98352263]
[1736443741305,2.6249,190.51,190.48,2.6252]
[1736443743603,2.625,190.5,190.47,2.6254]
[1736443744013,13.25932263,190.5,190.41,1.6129]
[1736443744207,13.25932263,190.47,190.41,1.6129]
[1736443744516,2.626,190.43,190.4,7.28716824]
[1736443745003,2.6259,190.44,190.4,2.6263]
[1736443746616,2.6259,190.44,190.38,9.7411452]
[1736443746816,2.6259,190.44,190.41,2.6262]
[1736443747509,13.25932263,190.47,190.41,2.6262]
[1736443747808,2.6257,190.45,190.42,2.6261]
[1736443749422,13.25932263,190.47,190.42,2.6261]
[1736443750718,2.6258,190.45,190.42,2.6261]
[1736443751415,2.6258,190.45,190.38,9.7411452]
[1736443751719,13.25932263,190.51,190.39,13.25932263]
[1736443752319,13.25932263,190.54,190.42,13.25932263]
[1736443752526,13.25932263,190.54,190.43,1.5734]
[1736443752821,2.625,190.51,190.43,1.5734]
[1736443753320,2.625,190.51,190.46,8.4695169]
[1736443753923,2.625,190.51,190.48,2.6253]
[1736443754613,11.0941169,190.53,190.5,2.625]
[1736443755420,2.6246,190.53,190.5,2.625]
[1736443756112,2.6246,190.53,190.45,13.23216098]
[1736443756113,13.23216098,190.56,190.45,13.23216098]
[1736443756314,6.93706609,190.57,190.48,13.23216098]
[1736443756518,6.93706609,190.57,190.49,4.66]
[1736443756719,6.93706609,190.57,190.55,2.6242]
[1736443757222,2.6239,190.58,190.54,2.6244]
[1736443758225,2.6238,190.59,190.53,2.6245]
[1736443758526,2.6238,190.59,190.5,1.5306]
[1736443758726,2.6238,190.59,190.51,13.23216098]
[1736443758925,2.6235,190.61,190.57,2.624]
[1736443759124,13.23216098,190.62,190.51,13.23216098]
[1736443760528,2.6237,190.6,190.55,2.6242]
[1736443760931,13.23216098,190.62,190.55,2.6242]
[1736443761121,2.6238,190.6,190.55,2.6242]
[1736443761320,13.23216098,190.66,190.51,13.23216098]
[1736443761521,13.23216098,190.66,190.55,13.23216098]
[1736443761728,2.6233,190.63,190.55,13.23216098]
[1736443761928,2.6233,190.63,190.58,2.6238]
[1736443762230,2.623,190.65,190.55,13.23216098]
[1736443762426,2.623,190.65,190.6,2.6235]
[1736443763428,2.623,190.65,190.61,2.6235]
[1736443764332,2.6232,190.64,190.59,2.6238]
[1736443764537,13.23216098,190.66,190.57,1.6301]
[1736443764730,13.23216098,190.66,190.56,4.66]
[1736443764932,13.23216098,190.66,190.56,2.6242]
[1736443765132,13.23216098,190.63,190.52,1.6301]
[1736443765633,2.6237,190.6,190.55,2.6242]
[1736443767033,2.6237,190.6,190.52,1.6301]
[1736443767233,2.6237,190.6,190.56,2.6242]
[1736443767633,2.6234,190.62,190.58,2.6239]
[1736443774833,2.6234,190.62,190.52,6.2901]
[1736443775039,2.6234,190.62,190.54,13.23216098]
[1736443775241,2.6234,190.62,190.58,2.6238]
[1736443775540,2.6235,190.61,190.58,2.6238]
[1736443777943,2.6239,190.59,190.55,2.6243]
[1736443778235,13.23216098,190.6,190.48,16.49366098]
[1736443778440,13.23216098,190.57,190.48,3.2615]
[1736443778644,2.6247,190.52,190.48,2.6253]
[1736443780739,13.23216098,190.57,190.48,2.6253]
[1736443780945,2.6246,190.54,190.48,2.6253]
[1736443781247,2.6246,190.54,190.46,59.58454231]
[1736443781538,2.6244,190.55,190.46,59.58454231]
[1736443782144,13.23216098,190.57,190.46,59.58454231]
[1736443782443,4.64,190.61,190.52,13.23216098]
[1736443782647,13.23216098,190.63,190.52,13.23216098]
[1736443782849,2.6237,190.6,190.52,13.23216098]
[1736443783248,2.6237,190.6,190.55,2.6242]
[1736443783548,2.6238,190.59,190.52,13.23216098]
[1736443783946,2.6238,190.59,190.55,2.6242]
[1736443784948,14.26516098,190.64,190.52,13.23216098]
[1736443785150,13.23216098,190.61,190.53,2.6246]
[1736443785450,13.23216098,190.58,190.46,72.81670329]
[1736443785647,1.6306,190.57,190.49,2.6251]
[1736443786343,1.6306,190.57,190.46,72.81670329]
[1736443786537,1.6306,190.57,190.5,2.625]
[1736443786947,2.6246,190.54,190.5,2.625]
[1736443787846,2.6246,190.54,190.46,72.81670329]
[1736443788054,2.6246,190.53,190.46,72.81670329]
[1736443788450,2.6246,190.53,190.49,2.625]
[1736443788851,2.6246,190.53,190.46,72.81670329]
[1736443789051,2.6246,190.53,190.49,2.6251]
[1736443789253,2.6246,190.53,190.46,72.81670329]
[1736443789654,2.6246,190.53,190.49,2.625]
[1736443792054,2.6246,190.53,190.46,72.81670329]
[1736443792255,2.6246,190.53,190.5,2.625]
[1736443800961,8.46835391,190.56,190.48,8.46835391]
[1736443801155,8.46835391,190.56,190.46,59.58454231]
[1736443801156,8.46835391,190.58,190.52,8.46835391]
[1736443801553,8.5488363,190.62,190.54,8.46835391]
[1736443801859,8.46835391,190.6,190.55,2.6242]
[1736443802154,2.6239,190.59,190.56,2.6241]
[1736443802357,1.5937,190.62,190.5,4.64]
[1736443802358,8.46835391,190.57,190.5,4.64]
[1736443802554,8.46835391,190.55,190.49,8.46835391]
[1736443804160,8.46835391,190.55,190.51,2.6248]
[1736443804161,2.6245,190.54,190.51,2.6248]
[1736443804858,2.6245,190.54,190.49,8.46835391]
[1736443805057,8.46835391,190.53,190.46,59.58454231]
[1736443805373,8.46835391,190.49,190.42,8.84311137]
[1736443805558,8.46835391,190.47,190.42,8.84311137]
[1736443805753,8.46835391,190.45,190.42,7.27331137]
[1736443806359,11.09405391,190.45,190.42,7.27331137]
[1736443806562,11.09405391,190.45,190.38,12.8727452]
[1736443806563,8.46835391,190.47,190.41,8.46835391]
[1736443807252,11.09365391,190.49,190.43,8.46835391]
[1736443808159,8.46835391,190.53,190.47,8.46835391]
[1736443808355,1.5466,190.57,190.49,8.46835391]
[1736443808559,10.01495391,190.57,190.49,11.09335391]
[1736443808763,1.5466,190.57,190.49,8.46835391]
[1736443808966,8.46835391,190.54,190.49,8.46835391]
[1736443809164,2.6244,190.55,190.5,2.625]
[1736443809558,1.513,190.58,190.5,2.625]
[1736443809758,2.6245,190.54,190.5,2.625]
[1736443810965,2.6246,190.53,190.5,2.625]
[1736443811364,2.6244,190.55,190.5,2.625]
[1736443811668,1.513,190.58,190.47,13.22920727]
[1736443811868,2.6246,190.54,190.49,2.6251]
[1736443812168,2.6246,190.54,190.47,13.22920727]
[1736443812365,2.6246,190.54,190.49,2.6251]
[1736443813067,1.513,190.58,190.47,13.22920727]
[1736443813267,2.6243,190.55,190.47,13.22920727]
[1736443813668,2.6243,190.55,190.49,2.6251]
[1736443813865,2.6243,190.55,190.47,13.22920727]
[1736443814266,1.513,190.58,190.47,13.22920727]
[1736443814465,1.513,190.58,190.5,2.625]
[1736443814668,1.513,190.58,190.47,13.22920727]
[1736443814869,13.22920727,190.56,190.44,13.22920727]
[1736443815172,13.22920727,190.53,190.43,1.63]
[1736443815564,2.6253,190.48,190.45,2.6257]
[1736443815969,13.22920727,190.53,190.43,1.63]
[1736443816469,13.22920727,190.53,190.44,2.6258]
[1736443816869,2.6254,190.48,190.44,2.6258]
[1736443817065,2.6254,190.48,190.45,2.6257]
[1736443817871,2.6254,190.48,190.43,1.63]
[1736443818071,2.6255,190.47,190.44,2.6258]
[1736443818269,13.22920727,190.53,190.44,2.6258]
[1736443818865,2.6253,190.48,190.44,2.6258]
[1736443819471,2.6254,190.47,190.44,2.6258]
[1736443819976,13.22920727,190.53,190.44,2.6258]
[1736443820165,2.6253,190.49,190.45,2.6257]
[1736443820467,13.22920727,190.53,190.45,2.6257]
[1736443820872,2.6252,190.49,190.45,2.6257]
[1736443821073,1.5444,190.55,190.43,13.22920727]
[1736443821273,2.625,190.51,190.43,13.22920727]
[1736443821572,8.52620068,190.55,190.46,2.6255]
[1736443821973,8.52620068,190.55,190.42,13.22920727]
[1736443822174,8.52620068,190.55,190.47,2.6254]
[1736443822367,1.5444,190.55,190.45,13.22920727]
[1736443822570,2.6248,190.52,190.45,13.22920727]
[1736443822977,2.6245,190.54,190.48,13.22920727]
[1736443823168,1.5386,190.62,190.48,13.22920727]
[1736443823371,1.5386,190.62,190.49,1.5673]
[1736443823568,2.6243,190.56,190.52,2.6247]
[1736443823972,2.6243,190.56,190.49,1.5673]
[1736443824269,8.52584577,190.62,190.51,13.22920727]
[1736443824475,2.6239,190.59,190.51,13.22920727]
[1736443824774,2.6239,190.59,190.54,13.22920727]
[1736443825076,2.6237,190.6,190.56,2.6241]
[1736443825476,2.6235,190.62,190.58,2.6238]
[1736443825873,6.98724577,190.65,190.54,13.22920727]
[1736443826270,13.22920727,190.66,190.54,13.22920727]
[1736443826573,2.6236,190.61,190.54,13.22920727]
[1736443827075,2.6236,190.61,190.56,2.6242]
[1736443827276,2.6236,190.61,190.54,13.22920727]
[1736443827478,13.22920727,190.66,190.54,13.22920727]
[1736443827673,13.22920727,190.66,190.58,2.6238]
[1736443829175,2.6234,190.62,190.58,2.6238]
[1736443829678,13.22920727,190.66,190.56,2.6241]
[1736443830273,2.6237,190.6,190.56,2.6241]
[1736443830782,2.6237,190.6,190.57,2.624]
[1736443833871,13.22920727,190.66,190.55,2.6242]
[1736443834075,13.22920727,190.63,190.53,13.22920727]
[1736443834480,2.624,190.58,190.54,2.6244]
[1736443834875,13.22920727,190.63,190.53,13.22920727]
[1736443835075,13.22920727,190.6,190.5,13.22920727]
[1736443835279,8.46634594,190.57,190.51,8.46634594]
[1736443835476,2.6244,190.55,190.51,11.09114594]
[1736443835971,2.6247,190.53,190.49,12.65874594]
[1736443836476,8.46634594,190.57,190.49,10.03364594]
[1736443836679,2.6246,190.54,190.5,2.6249]
[1736443836875,8.46634594,190.57,190.51,8.46634594]
[1736443837180,2.6244,190.55,190.51,11.09114594]
[1736443837381,2.6244,190.55,190.49,14.79468507]
[1736443837578,1.5456,190.6,190.49,14.79468507]
[1736443837776,2.6241,190.57,190.53,2.6246]
[1736443837976,8.51997806,190.6,190.49,14.79468507]
[1736443838378,2.6242,190.56,190.53,2.6246]
[1736443839682,2.6243,190.55,190.52,2.6247]
[1736443839873,10.07437806,190.6,190.52,2.6247]
[1736443840080,10.07437806,190.6,190.49,14.79468507]
[1736443840284,2.6243,190.56,190.52,2.6247]
[1736443840882,2.6243,190.56,190.49,14.79468507]
[1736443841483,2.6243,190.56,190.52,2.6246]
[1736443842783,3.1,190.6,190.5,2.6249]
[1736443842983,13.22738507,190.58,190.49,1.5673]
[1736443843491,2.6247,190.53,190.5,2.625]
[1736443843683,13.22738507,190.58,190.49,1.5673]
[1736443843885,13.22738507,190.58,190.46,13.22738507]
[1736443845183,13.22738507,190.58,190.49,2.6251]
[1736443846686,2.6247,190.52,190.49,2.6251]
[1736443849892,2.6244,190.55,190.5,2.6249]
[1736443850086,13.22738507,190.58,190.46,13.22738507]
[1736443850488,13.22738507,190.58,190.49,2.6251]
[1736443852089,2.6248,190.52,190.49,2.6251]
[1736443853093,13.22738507,190.58,190.5,2.6249]
[1736443853694,2.6246,190.53,190.5,2.6249]
[1736443854495,2.6246,190.53,190.51,2.6249]
[1736443857095,10.05877957,190.6,190.46,13.22738507]
[1736443858398,2.6248,190.52,190.49,2.6251]
[1736443859297,2.6248,190.52,190.51,8.46622215]
[1736443859892,3.1,190.6,190.51,8.46622215]
[1736443860102,2.6247,190.53,190.51,8.46622215]
[1736443860300,8.46622215,190.58,190.51,8.46622215]
[1736443860599,2.625,190.5,190.49,8.46622215]
[1736443860800,8.46622215,190.56,190.49,8.46622215]
[1736443862104,2.6245,190.54,190.49,11.09132215]
[1736443862404,8.46622215,190.56,190.49,11.09132215]
[1736443862804,2.6248,190.52,190.49,11.09132215]
[1736443868908,2.6255,190.47,190.45,9.73717079]
[1736443869109,8.46622215,190.5,190.42,8.90851137]
[1736443869315,8.46622215,190.48,190.42,7.27331137]
[1736443869612,8.46622215,190.48,190.42,15.73953352]
[1736443869915,8.46622215,190.48,190.42,7.27331137]
[1736443870116,8.46622215,190.46,190.39,8.46622215]
[1736443870311,8.46622215,190.44,190.37,10.10522215]
[1736443870814,8.46622215,190.44,190.37,8.46622215]
[1736443871115,8.46622215,190.42,190.37,8.46622215]
[1736443871315,8.46622215,190.42,190.35,11.09332215]
[1736443871516,8.46622215,190.42,190.37,8.46622215]
[1736443871714,2.6261,190.42,190.37,8.46622215]
[1736443871914,8.46622215,190.44,190.37,8.46622215]
[1736443872516,8.46622215,190.42,190.32,3.1256]
[1736443872720,8.46622215,190.36,190.27,1.4963]
[1736443873008,2.6278,190.3,190.27,8.46622215]
[1736443873213,8.46622215,190.32,190.26,14.02314594]
[1736443874208,2.6279,190.29,190.26,14.02314594]
[1736443875815,8.46622215,190.3,190.26,14.02314594]
[1736443876019,8.46622215,190.28,190.26,14.02314594]
[1736443876215,2.6282,190.27,190.2,3.0742]
[1736443876420,8.46622215,190.26,190.2,10.04412215]
[1736443876617,8.46622215,190.26,190.16,9.75167061]
[1736443876919,8.46622215,190.26,190.19,8.46622215]
[1736443877215,2.6286,190.24,190.19,8.46622215]
[1736443877419,2.6286,190.24,190.17,14.90981987]
[1736443878112,2.6286,190.24,190.19,2.6292]
[1736443878311,2.6286,190.24,190.17,14.90981987]
[1736443878916,2.6286,190.24,190.18,2.6293]
[1736443880220,2.6286,190.24,190.17,14.90981987]
[1736443880409,2.6286,190.24,190.19,2.6292]
[1736443882414,2.6284,190.26,190.21,2.629]
[1736443883422,13.27051987,190.29,190.17,14.90981987]
[1736443883621,13.27051987,190.29,190.17,1.6393]
[1736443883819,13.27051987,190.26,190.16,9.75167061]
[1736443884018,2.6294,190.18,190.16,9.75167061]
[1736443884825,13.27051987,190.23,190.16,9.75167061]
[1736443885125,13.27051987,190.26,190.16,23.02219048]
[1736443885619,2.6289,190.22,190.17,2.6295]
[1736443886824,13.27051987,190.26,190.16,9.75167061]
[1736443887025,2.6293,190.2,190.16,9.75167061]
[1736443887218,13.27051987,190.24,190.16,9.75167061]
[1736443887921,2.6292,190.2,190.16,9.75167061]
[1736443888719,2.6296,190.17,190.16,9.75167061]
[1736443888925,17.89051987,190.3,190.12,2.6302]
[1736443888926,13.27051987,190.21,190.12,2.6302]
[1736443889319,2.6297,190.17,190.12,2.6302]
[1736443889719,2.6297,190.17,190.13,2.6301]
[1736443889921,2.6295,190.18,190.13,2.6301]
[1736443890125,7.8175,190.23,190.12,13.27051987]
[1736443890425,2.6293,190.19,190.12,13.27051987]
[1736443890925,2.6293,190.19,190.15,2.6298]
[1736443891120,2.6295,190.18,190.12,13.27051987]
[1736443891316,13.27051987,190.21,190.09,23.02639209]
[1736443891621,13.27051987,190.21,190.13,2.63]
[1736443891922,13.27051987,190.21,190.09,23.02639209]
[1736443892126,13.27051987,190.18,190.09,9.75587222]
[1736443892620,13.27051987,190.15,190.09,9.75587222]
[1736443892820,2.6305,190.1,190.09,9.75587222]
[1736443893324,1.5664,190.14,190.09,9.75587222]
[1736443894025,1.5664,190.14,190.04,59.38920109]
[1736443894625,2.6305,190.11,190.07,2.6308]
[1736443894827,2.6305,190.11,190.04,59.38920109]
[1736443894828,1.0393,190.22,190.06,13.27051987]
[1736443895027,13.27051987,190.19,190.07,1.4926]
[1736443895421,2.6298,190.16,190.07,1.4926]
[1736443895926,2.6299,190.15,190.11,2.6303]
[1736443896326,2.6301,190.13,190.1,2.6305]
[1736443896529,2.6301,190.13,190.07,1.4926]
[1736443896731,13.27051987,190.18,190.07,1.4926]
[1736443896925,13.27051987,190.15,190.08,2.6308]
[1736443898733,2.6304,190.12,190.08,2.6308]
[1736443899327,13.27051987,190.15,190.07,1.4926]
[1736443899531,13.27051987,190.18,190.07,1.4926]
[1736443899929,2.6298,190.16,190.07,1.4926]
[1736443900135,13.27051987,190.18,190.09,13.27051987]
[1736443901031,2.6293,190.19,190.15,2.6298]
[1736443902537,2.6294,190.18,190.14,2.63]
[1736443904533,13.27051987,190.21,190.14,2.63]
[1736443904738,2.6296,190.17,190.14,2.63]
[1736443906232,2.6295,190.18,190.14,2.63]
[1736443908939,2.6295,190.18,190.15,2.6298]
[1736443909143,1.538,190.22,190.12,13.27051987]
[1736443910233,2.6294,190.18,190.12,13.27051987]
[1736443910936,2.6294,190.18,190.15,2.6297]
[1736443911543,2.6294,190.18,190.12,13.27051987]
[1736443911745,2.6293,190.19,190.16,2.6297]
[1736443911947,17.91051987,190.27,190.12,13.27051987]
[1736443912142,13.27051987,190.27,190.15,13.27051987]
[1736443912642,3.1446,190.28,190.16,1.6318]
[1736443912844,3.1446,190.28,190.16,4.7173]
[1736443913049,3.1446,190.28,190.22,2.6289]
[1736443913345,13.27051987,190.3,190.18,13.27051987]
[1736443914153,2.6284,190.26,190.23,2.6286]
[1736443915242,2.6285,190.25,190.22,2.6288]
[1736443915441,13.27051987,190.3,190.22,2.6288]
[1736443916340,2.6284,190.26,190.18,13.27051987]
[1736443916543,17.91051987,190.33,190.21,13.27051987]
[1736443917147,13.27051987,190.33,190.21,13.27051987]
[1736443917451,3.0525,190.34,190.24,13.27051987]
[1736443917850,3.0525,190.34,190.26,2.6282]
[1736443918749,2.6276,190.32,190.26,2.6282]
[1736443919051,3.0525,190.34,190.26,2.6282]
[1736443921142,2.628,190.29,190.26,2.6282]
[1736443921347,3.0525,190.34,190.26,2.6282]
[1736443922248,2.6282,190.27,190.24,2.6285]
[1736443922546,13.27051987,190.33,190.21,13.27051987]
[1736443922755,13.27051987,190.3,190.18,13.27051987]
[1736443923448,2.6287,190.24,190.18,13.27051987]
[1736443927260,13.27051987,190.21,190.12,2.6302]
[1736443927762,2.6295,190.18,190.13,2.6301]
[1736443928264,2.6295,190.18,190.13,2.63]
[1736443928761,2.6295,190.18,190.11,1.5028]
[1736443929055,2.6295,190.18,190.13,2.6301]
[1736443929259,2.6295,190.18,190.11,1.5028]
[1736443929755,13.27051987,190.21,190.13,2.6301]
[1736443929756,2.6296,190.17,190.13,2.6301]
[1736443929958,13.27051987,190.21,190.11,1.5028]
[1736443930356,13.27051987,190.21,190.12,2.6302]
[1736443931154,13.27051987,190.21,190.13,2.63]
[1736443931561,13.27051987,190.21,190.14,2.63]
[1736443931761,1.6125,190.23,190.12,13.27051987]
[1736443932357,13.27051987,190.24,190.12,13.27051987]
[1736443932659,13.27051987,190.18,190.11,1.5028]
[1736443932956,2.63,190.14,190.05,13.27051987]
[1736443933158,2.63,190.14,190.05,21.15611987]
[1736443933358,13.27051987,190.18,190.05,16.49611987]
[1736443933559,13.27051987,190.15,190.05,16.49611987]
[1736443933951,2.6305,190.11,190.07,2.6308]
[1736443934862,2.6305,190.11,190.05,16.49611987]
[1736443935158,2.6303,190.12,190.08,2.6308]
[1736443935760,2.6302,190.13,190.09,2.6307]
[1736443936058,1.4814,190.17,190.05,16.49611987]
[1736443937062,2.6299,190.15,190.11,2.6304]
[1736443937856,2.6302,190.13,190.05,16.49611987]
[1736443938061,1.4814,190.17,190.05,16.49611987]
[1736443938458,2.6301,190.14,190.1,2.6305]
[1736443942461,2.6301,190.13,190.1,2.6305]
[1736443943864,1.4814,190.17,190.05,16.49611987]
[1736443944064,2.6304,190.11,190.05,16.49611987]
[1736443944459,1.4814,190.17,190.05,16.49611987]
[1736443944666,2.6302,190.13,190.05,16.49611987]
[1736443944868,1.4814,190.17,190.05,16.49611987]
[1736443946668,2.6302,190.13,190.1,2.6305]
[1736443946864,1.4814,190.17,190.05,16.49611987]
[1736443947466,2.63,190.14,190.11,2.6303]
[1736443947667,1.5618,190.2,190.08,13.27051987]
[1736443948868,13.27051987,190.17,190.05,16.49611987]
[1736443949070,2.6303,190.12,190.09,2.6306]
[1736443949371,13.27051987,190.17,190.05,16.49611987]
[1736443949561,2.6306,190.1,190.08,2.6308]
[1736443949765,2.6306,190.1,190.05,16.49611987]
[1736443949970,13.27051987,190.17,190.05,16.49611987]
[1736443951470,2.6306,190.1,190.08,2.6308]
[1736443951770,2.6306,190.1,190.05,16.49611987]
[1736443952669,2.6306,190.1,190.07,2.6309]
[1736443952869,2.6306,190.1,190.05,16.49611987]
[1736443953375,2.6304,190.11,190.08,2.6308]
[1736443953867,2.6304,190.11,190.05,16.49611987]
[1736443955365,2.6304,190.11,190.08,2.6307]
[1736443955570,2.6306,190.1,190.05,16.49611987]
[1736443955772,13.27051987,190.17,190.08,2.6308]
[1736443956776,2.6299,190.15,190.05,16.49611987]
[1736443956973,13.27051987,190.17,190.05,16.49611987]
[1736443957479,2.6298,190.16,190.08,13.27051987]
[1736443957674,14.83231987,190.2,190.08,13.27051987]
[1736443957876,14.83231987,190.2,190.12,2.6302]
[1736443958278,14.83231987,190.2,190.05,3.2256]
[1736443958279,13.27051987,190.17,190.11,2.6303]
[1736443958781,13.27051987,190.17,190.05,16.49611987]
[1736443959280,13.27051987,190.17,190.09,2.6306]
[1736443960174,2.6304,190.12,190.09,2.6306]
[1736443960474,2.6304,190.12,190.1,2.6305]
[1736443960680,2.6304,190.12,190.05,16.49611987]
[1736443961676,2.6304,190.12,190.07,2.6309]
[1736443961978,2.6304,190.12,190.05,16.49611987]
[1736443962174,2.6304,190.11,190.08,2.6307]
[1736443962977,2.6304,190.11,190.09,2.6306]
[1736443963976,2.6303,190.12,190.09,2.6306]
[1736443964176,2.6303,190.12,190.05,16.49611987]
[1736443964572,13.27051987,190.17,190.05,16.49611987]
[1736443965082,2.6293,190.19,190.11,13.27051987]
[1736443965280,2.6293,190.19,190.12,1.5712]
[1736443965479,13.27051987,190.2,190.15,2.6298]
[1736443966082,2.6294,190.18,190.15,2.6298]
[1736443967490,2.6294,190.18,190.14,2.63]
[1736443968186,2.6296,190.17,190.14,2.63]
[1736443969691,13.27051987,190.23,190.12,1.5712]
[1736443969891,2.6293,190.2,190.14,13.27051987]